[Event "*** Titled Tuesday Blitz"]
[Site "Chess.com"]
[Date "2020.12.01"]
[Round "10"]
[White "Skat2704"]
[Black "Nachsueb"]
[Result "1-0"]
[WhiteElo "2338"]
[BlackElo "2196"]
[TimeControl "180+1"]
[EndTime "11:55:18 PST"]
[Termination "Skat2704 won on time"]

1. d4 {[%clk 0:03:00.5]} 1... Nf6 {[%clk 0:02:59.7]} 2. c4 {[%clk 0:03:01.4]}
2... c5 {[%clk 0:02:58.9]} 3. Nf3 {[%clk 0:03:02.3]} 3... g6 {[%clk 0:02:56.3]}
4. d5 {[%clk 0:03:01.7]} 4... e6 {[%clk 0:02:55.9]} 5. Nc3 {[%clk 0:03:01.1]}
5... exd5 {[%clk 0:02:56.1]} 6. cxd5 {[%clk 0:03:01.1]} 6... d6 {[%clk
0:02:56.6]} 7. h3 {[%clk 0:03:01.2]} 7... Bg7 {[%clk 0:02:56.6]} 8. e4 {[%clk
0:03:00.9]} 8... O-O {[%clk 0:02:56.6]} 9. Bd3 {[%clk 0:02:59.9]} 9... Re8
{[%clk 0:02:56.1]} 10. O-O {[%clk 0:02:59.6]} 10... Na6 {[%clk 0:02:53.4]} 11.
Re1 {[%clk 0:02:56.5]} 11... Nc7 {[%clk 0:02:44.1]} 12. a4 {[%clk 0:02:54.5]}
12... Rb8 {[%clk 0:02:36.6]} 13. Bf4 {[%clk 0:02:53.7]} 13... Na6 {[%clk
0:02:27.9]} 14. Nd2 {[%clk 0:02:49]} 14... Nb4 {[%clk 0:02:19]} 15. Bb1 {[%clk
0:02:45.1]} 15... Nh5 {[%clk 0:02:17.6]} 16. Bh2 {[%clk 0:02:41.2]} 16... a6
{[%clk 0:01:54.2]} 17. Nc4 {[%clk 0:02:39.2]} 17... Bf8 {[%clk 0:01:47.1]} 18.
a5 {[%clk 0:02:31.5]} 18... Ng7 {[%clk 0:01:45.1]} 19. f4 {[%clk 0:02:27.7]}
19... f5 {[%clk 0:01:35.7]} 20. e5 {[%clk 0:02:27.1]} 20... Bd7 {[%clk
0:01:11.3]} 21. e6 {[%clk 0:02:15.6]} 21... Bb5 {[%clk 0:01:10.7]} 22. Nxb5
{[%clk 0:02:09.9]} 22... axb5 {[%clk 0:01:11.6]} 23. Ne3 {[%clk 0:02:08.3]}
23... Ra8 {[%clk 0:00:53.3]} 24. g4 {[%clk 0:01:42.2]} 24... Qf6 {[%clk
0:00:45.7]} 25. gxf5 {[%clk 0:01:39.4]} 25... Nxf5 {[%clk 0:00:27]} 26. Nxf5
{[%clk 0:01:35.8]} 26... gxf5 {[%clk 0:00:27.9]} 27. Qh5 {[%clk 0:01:31.5]}
27... Re7 {[%clk 0:00:17.4]} 28. Kh1 {[%clk 0:01:23.1]} 28... Rg7 {[%clk
0:00:15.9]} 29. Bxf5 {[%clk 0:01:19.1]} 29... Qxb2 {[%clk 0:00:15.4]} 30. Rg1
{[%clk 0:01:13.9]} 30... Kh8 {[%clk 0:00:12.4]} 31. Rae1 {[%clk 0:00:55]} 31...
Nxd5 {[%clk 0:00:11]} 32. Rxg7 {[%clk 0:00:46]} 32... Qxg7 {[%clk 0:00:11.9]}
33. Rg1 {[%clk 0:00:45.8]} 33... Qe7 {[%clk 0:00:11.9]} 34. Bg3 {[%clk
0:00:33.9]} 34... Nf6 {[%clk 0:00:10.5]} 35. Qf3 {[%clk 0:00:33.5]} 35... Rxa5
{[%clk 0:00:09.6]} 36. Bh4 {[%clk 0:00:32.8]} 36... Bg7 {[%clk 0:00:09.3]} 37.
Qc3 {[%clk 0:00:23.5]} 37... Ra4 {[%clk 0:00:01.8]} 38. Qf3 {[%clk 0:00:22.1]}
38... Rd4 {[%clk 0:00:01]} 39. Ra1 {[%clk 0:00:21.2]} 1-0

[Event "*** Titled Tuesday Blitz"]
[Site "Chess.com"]
[Date "2020.12.01"]
[Round "10"]
[White "ChessWarrior7197"]
[Black "chessdjw"]
[Result "1-0"]
[WhiteElo "2962"]
[BlackElo "2649"]
[TimeControl "180+1"]
[EndTime "11:55:21 PST"]
[Termination "ChessWarrior7197 won on time"]

1. e4 {[%clk 0:03:00.9]} 1... c5 {[%clk 0:02:59.7]} 2. f4 {[%clk 0:02:57.7]}
2... d5 {[%clk 0:02:57.9]} 3. Bb5+ {[%clk 0:02:58.2]} 3... Nd7 {[%clk
0:02:56.8]} 4. exd5 {[%clk 0:02:56.3]} 4... Nf6 {[%clk 0:02:57]} 5. c4 {[%clk
0:02:56.1]} 5... a6 {[%clk 0:02:56.7]} 6. Ba4 {[%clk 0:02:56.5]} 6... b5 {[%clk
0:02:40.2]} 7. cxb5 {[%clk 0:02:57.4]} 7... Nb6 {[%clk 0:02:40.5]} 8. bxa6+
{[%clk 0:02:54.2]} 8... Nxa4 {[%clk 0:02:39.8]} 9. Qxa4+ {[%clk 0:02:55.1]} 9...
Bd7 {[%clk 0:02:31.9]} 10. Qc4 {[%clk 0:02:55.5]} 10... Qb6 {[%clk 0:02:26.9]}
11. Nc3 {[%clk 0:02:55.1]} 11... Qxa6 {[%clk 0:02:23]} 12. Qxc5 {[%clk
0:02:53.9]} 12... e6 {[%clk 0:02:13]} 13. Qe3 {[%clk 0:02:54.3]} 13... Be7
{[%clk 0:01:51.5]} 14. Qe2 {[%clk 0:02:54.6]} 14... exd5 {[%clk 0:01:40.7]} 15.
Qxa6 {[%clk 0:02:53.7]} 15... Rxa6 {[%clk 0:01:41.6]} 16. Nge2 {[%clk
0:02:54.6]} 16... O-O {[%clk 0:01:39.1]} 17. O-O {[%clk 0:02:54.9]} 17... d4
{[%clk 0:01:34.1]} 18. Nd1 {[%clk 0:02:47]} 18... Bb5 {[%clk 0:01:21.1]} 19. Re1
{[%clk 0:02:46.8]} 19... Bc5 {[%clk 0:01:21.5]} 20. Ng3 {[%clk 0:02:03.1]} 20...
Nd5 {[%clk 0:01:21]} 21. Ne4 {[%clk 0:01:53.1]} 21... Ba7 {[%clk 0:01:14.7]} 22.
d3 {[%clk 0:01:43.8]} 22... Bxd3 {[%clk 0:01:13.5]} 23. Ndf2 {[%clk 0:01:44.4]}
23... Bc2 {[%clk 0:00:58.1]} 24. Bd2 {[%clk 0:01:43.3]} 24... h6 {[%clk
0:00:49]} 25. b4 {[%clk 0:01:37.2]} 25... Rc8 {[%clk 0:00:39.8]} 26. Rec1 {[%clk
0:01:34.4]} 26... d3 {[%clk 0:00:34.1]} 27. a4 {[%clk 0:01:26.8]} 27... Rc4
{[%clk 0:00:28.6]} 28. b5 {[%clk 0:01:06.6]} 28... Raxa4 {[%clk 0:00:21.8]} 29.
Nd6 {[%clk 0:01:07.2]} 29... Rd4 {[%clk 0:00:08.3]} 30. Kf1 {[%clk 0:01:01.4]}
30... Bc5 {[%clk 0:00:08]} 31. Nde4 {[%clk 0:00:39.9]} 31... Rxe4 {[%clk
0:00:07.8]} 32. Nxe4 {[%clk 0:00:38]} 32... Rxe4 {[%clk 0:00:08.7]} 33. Re1
{[%clk 0:00:29.9]} 33... Rc4 {[%clk 0:00:08.6]} 34. Re5 {[%clk 0:00:28.8]} 34...
Nxf4 {[%clk 0:00:07.4]} 35. Ra8+ {[%clk 0:00:25.8]} 35... Kh7 {[%clk 0:00:06.8]}
36. Rc8 {[%clk 0:00:26.3]} 36... Ne6 {[%clk 0:00:05.9]} 37. b6 {[%clk
0:00:26.6]} 37... Ra4 {[%clk 0:00:02.9]} 38. b7 {[%clk 0:00:21.6]} 38... Ra1+
{[%clk 0:00:02.3]} 39. Re1 {[%clk 0:00:20.8]} 39... Rxe1+ {[%clk 0:00:01.5]} 40.
Kxe1 {[%clk 0:00:19]} 40... Bd6 {[%clk 0:00:02.2]} 41. g3 {[%clk 0:00:16.9]}
41... Bb3 {[%clk 0:00:01.8]} 42. Rc3 {[%clk 0:00:12.5]} 1-0

[Event "*** Titled Tuesday Blitz"]
[Site "Chess.com"]
[Date "2020.12.01"]
[Round "10"]
[White "Zq1"]
[Black "profofchess"]
[Result "0-1"]
[WhiteElo "2549"]
[BlackElo "2440"]
[TimeControl "180+1"]
[EndTime "11:55:24 PST"]
[Termination "profofchess won on time"]

1. d4 {[%clk 0:03:00.9]} 1... Nf6 {[%clk 0:02:59.7]} 2. c4 {[%clk 0:03:00.4]}
2... e6 {[%clk 0:02:59.2]} 3. Nc3 {[%clk 0:03:00.2]} 3... Bb4 {[%clk 0:02:59.2]}
4. e3 {[%clk 0:03:00.5]} 4... O-O {[%clk 0:02:50.2]} 5. Bd3 {[%clk 0:03:00.2]}
5... c5 {[%clk 0:02:49.6]} 6. Ne2 {[%clk 0:02:59.2]} 6... cxd4 {[%clk
0:02:45.4]} 7. exd4 {[%clk 0:02:58.9]} 7... d5 {[%clk 0:02:45.6]} 8. cxd5 {[%clk
0:02:56.7]} 8... Nxd5 {[%clk 0:02:45.7]} 9. O-O {[%clk 0:02:56.2]} 9... Nc6
{[%clk 0:02:44.3]} 10. Bc2 {[%clk 0:02:53.5]} 10... Be7 {[%clk 0:02:32]} 11. Qd3
{[%clk 0:02:50.9]} 11... g6 {[%clk 0:02:32]} 12. a3 {[%clk 0:02:50.5]} 12... Bf6
{[%clk 0:02:29.2]} 13. Bh6 {[%clk 0:02:47.1]} 13... Re8 {[%clk 0:02:27.5]} 14.
Rad1 {[%clk 0:02:45.3]} 14... b6 {[%clk 0:02:14.7]} 15. Ne4 {[%clk 0:02:39]}
15... Bh8 {[%clk 0:02:07.3]} 16. Qg3 {[%clk 0:02:36.5]} 16... Ba6 {[%clk
0:01:56.9]} 17. Bd3 {[%clk 0:02:25.5]} 17... Bxd3 {[%clk 0:01:49.3]} 18. Rxd3
{[%clk 0:02:24.7]} 18... Nce7 {[%clk 0:01:29.8]} 19. Bg5 {[%clk 0:01:36.5]}
19... Qd7 {[%clk 0:01:27.7]} 20. Qf3 {[%clk 0:01:24.6]} 20... f5 {[%clk
0:01:17.7]} 21. Nd2 {[%clk 0:01:06.2]} 21... Rac8 {[%clk 0:01:15.8]} 22. h4
{[%clk 0:01:05.6]} 22... Nf6 {[%clk 0:00:56.6]} 23. Nf4 {[%clk 0:00:57.9]} 23...
Ned5 {[%clk 0:00:48.3]} 24. Re1 {[%clk 0:00:55.2]} 24... Nxf4 {[%clk 0:00:45.7]}
25. Qxf4 {[%clk 0:00:46.1]} 25... Qc7 {[%clk 0:00:40.1]} 26. Qxc7 {[%clk
0:00:41.5]} 26... Rxc7 {[%clk 0:00:40.2]} 27. d5 {[%clk 0:00:30.3]} 27... exd5
{[%clk 0:00:34.1]} 28. Rxe8+ {[%clk 0:00:30]} 28... Nxe8 {[%clk 0:00:34]} 29.
Rxd5 {[%clk 0:00:30.1]} 29... Bf6 {[%clk 0:00:27.4]} 30. Bxf6 {[%clk 0:00:27.5]}
30... Nxf6 {[%clk 0:00:27.1]} 31. Rd8+ {[%clk 0:00:27.1]} 31... Kf7 {[%clk
0:00:27]} 32. Nf3 {[%clk 0:00:26.6]} 32... Ke7 {[%clk 0:00:26.3]} 33. Ra8 {[%clk
0:00:21.1]} 33... Ng4 {[%clk 0:00:22.8]} 34. g3 {[%clk 0:00:20.8]} 34... a5
{[%clk 0:00:20.1]} 35. Nd4 {[%clk 0:00:17.8]} 35... Rc1+ {[%clk 0:00:15.4]} 36.
Kg2 {[%clk 0:00:17.3]} 36... Rd1 {[%clk 0:00:15.8]} 37. Ra7+ {[%clk 0:00:15.3]}
37... Kd6 {[%clk 0:00:14.6]} 38. Nf3 {[%clk 0:00:14.9]} 38... Rb1 {[%clk
0:00:13.1]} 39. Rxh7 {[%clk 0:00:05.3]} 39... Rxb2 {[%clk 0:00:13.3]} 40. Ng5
{[%clk 0:00:05.2]} 40... Rxf2+ {[%clk 0:00:13.3]} 41. Kg1 {[%clk 0:00:04.4]}
41... b5 {[%clk 0:00:10]} 42. Rg7 {[%clk 0:00:04]} 42... b4 {[%clk 0:00:09.2]}
43. axb4 {[%clk 0:00:04.2]} 43... axb4 {[%clk 0:00:10.1]} 44. Rxg6+ {[%clk
0:00:04.5]} 44... Kd5 {[%clk 0:00:07.9]} 45. Rb6 {[%clk 0:00:03.4]} 45... Kc4
{[%clk 0:00:07.5]} 46. h5 {[%clk 0:00:01.8]} 46... Rh2 {[%clk 0:00:03.7]} 0-1

[Event "*** Titled Tuesday Blitz"]
[Site "Chess.com"]
[Date "2020.12.01"]
[Round "10"]
[White "GameOverBro"]
[Black "Gusarov91"]
[Result "0-1"]
[WhiteElo "2521"]
[BlackElo "2645"]
[TimeControl "180+1"]
[EndTime "11:55:27 PST"]
[Termination "Gusarov91 won on time"]

1. e4 {[%clk 0:02:58.1]} 1... c6 {[%clk 0:02:56.9]} 2. Nc3 {[%clk 0:02:57.9]}
2... d5 {[%clk 0:02:55.8]} 3. Nf3 {[%clk 0:02:58.3]} 3... Bg4 {[%clk 0:02:55.9]}
4. h3 {[%clk 0:02:58.4]} 4... Bxf3 {[%clk 0:02:56.2]} 5. Qxf3 {[%clk 0:02:59.3]}
5... e6 {[%clk 0:02:56.9]} 6. a3 {[%clk 0:02:58.5]} 6... Nd7 {[%clk 0:02:57]} 7.
d3 {[%clk 0:02:58.5]} 7... Ngf6 {[%clk 0:02:56.5]} 8. g4 {[%clk 0:02:58.7]} 8...
h6 {[%clk 0:02:56.4]} 9. h4 {[%clk 0:02:52.8]} 9... dxe4 {[%clk 0:02:52.1]} 10.
dxe4 {[%clk 0:02:50.9]} 10... Ne5 {[%clk 0:02:52.4]} 11. Qg3 {[%clk 0:02:51.1]}
11... Ng6 {[%clk 0:02:27.5]} 12. h5 {[%clk 0:02:42.7]} 12... Ne7 {[%clk
0:02:20.2]} 13. Bf4 {[%clk 0:02:32.9]} 13... Nc8 {[%clk 0:02:11.3]} 14. Bd3
{[%clk 0:02:26.5]} 14... Bc5 {[%clk 0:02:03.5]} 15. O-O-O {[%clk 0:02:25.3]}
15... Qe7 {[%clk 0:02:00.1]} 16. g5 {[%clk 0:02:21]} 16... hxg5 {[%clk
0:01:57.5]} 17. Bxg5 {[%clk 0:02:19.5]} 17... e5 {[%clk 0:01:48]} 18. f4 {[%clk
0:02:12.4]} 18... exf4 {[%clk 0:01:40.3]} 19. Qxf4 {[%clk 0:02:10.4]} 19... Bd6
{[%clk 0:01:40]} 20. e5 {[%clk 0:01:58.7]} 20... Bxe5 {[%clk 0:01:38.8]} 21. Qh4
{[%clk 0:01:57.9]} 21... Nd6 {[%clk 0:01:27.2]} 22. Rde1 {[%clk 0:01:57.3]}
22... O-O-O {[%clk 0:01:26.9]} 23. Kb1 {[%clk 0:01:51.3]} 23... Rde8 {[%clk
0:01:10.2]} 24. Qf2 {[%clk 0:01:47.3]} 24... Kb8 {[%clk 0:01:03.2]} 25. h6
{[%clk 0:01:47.4]} 25... Ng4 {[%clk 0:00:27.3]} 26. Qh4 {[%clk 0:01:13]} 26...
Qd7 {[%clk 0:00:12.5]} 27. h7 {[%clk 0:01:04.8]} 27... Nf6 {[%clk 0:00:07.9]}
28. Qb4 {[%clk 0:00:56.4]} 28... Nc8 {[%clk 0:00:04]} 29. Rh4 {[%clk 0:00:48.2]}
29... Bd6 {[%clk 0:00:03.8]} 30. Rxe8 {[%clk 0:00:39.2]} 30... Qxe8 {[%clk
0:00:04.7]} 31. Bf4 {[%clk 0:00:31.3]} 31... Qe1+ {[%clk 0:00:04.2]} 32. Ka2
{[%clk 0:00:31.3]} 32... c5 {[%clk 0:00:04.6]} 33. Bxd6+ {[%clk 0:00:26.6]}
33... Nxd6 {[%clk 0:00:05.4]} 34. Qf4 {[%clk 0:00:27.4]} 34... Qe6+ {[%clk
0:00:05.3]} 35. b3 {[%clk 0:00:26.7]} 35... Ka8 {[%clk 0:00:05.8]} 36. Qg5
{[%clk 0:00:19.3]} 36... Nfe8 {[%clk 0:00:04.2]} 37. Qxc5 {[%clk 0:00:16.9]}
37... Qc8 {[%clk 0:00:02]} 38. Qxc8+ {[%clk 0:00:07.9]} 38... Nxc8 {[%clk
0:00:02.9]} 39. Nd5 {[%clk 0:00:00.8]} 39... Ncd6 {[%clk 0:00:03]} 0-1

[Event "*** Titled Tuesday Blitz"]
[Site "Chess.com"]
[Date "2020.12.01"]
[Round "10"]
[White "Kretov_Evgenij"]
[Black "suyu28"]
[Result "0-1"]
[WhiteElo "2510"]
[BlackElo "2663"]
[TimeControl "180+1"]
[EndTime "11:55:29 PST"]
[Termination "suyu28 won by checkmate"]

1. d4 {[%clk 0:03:00.9]} 1... d5 {[%clk 0:02:30.9]} 2. c4 {[%clk 0:03:00.1]}
2... dxc4 {[%clk 0:02:25.9]} 3. Nf3 {[%clk 0:02:59.5]} 3... Nf6 {[%clk 0:02:26]}
4. e3 {[%clk 0:02:59.8]} 4... c5 {[%clk 0:02:26.3]} 5. Bxc4 {[%clk 0:02:59.8]}
5... e6 {[%clk 0:02:26.4]} 6. O-O {[%clk 0:02:59.5]} 6... a6 {[%clk 0:02:26.7]}
7. e4 {[%clk 0:02:59.2]} 7... cxd4 {[%clk 0:02:07.5]} 8. e5 {[%clk 0:02:57.7]}
8... Nfd7 {[%clk 0:02:03.2]} 9. Qxd4 {[%clk 0:02:56.4]} 9... Nc6 {[%clk
0:02:02.7]} 10. Qe4 {[%clk 0:02:52.7]} 10... Qc7 {[%clk 0:01:57.2]} 11. Re1
{[%clk 0:02:41.2]} 11... b5 {[%clk 0:01:57]} 12. Bb3 {[%clk 0:02:37.2]} 12...
Bb7 {[%clk 0:01:55.3]} 13. Qf4 {[%clk 0:02:29.7]} 13... Be7 {[%clk 0:01:17.1]}
14. Nc3 {[%clk 0:02:28.5]} 14... O-O {[%clk 0:01:17.2]} 15. Bc2 {[%clk
0:02:26.3]} 15... b4 {[%clk 0:01:08.2]} 16. Ne4 {[%clk 0:01:56.2]} 16... Ncxe5
{[%clk 0:01:04.8]} 17. Nxe5 {[%clk 0:01:39]} 17... Nxe5 {[%clk 0:01:00.2]} 18.
Nc5 {[%clk 0:01:37.4]} 18... Nf3+ {[%clk 0:00:54.1]} 19. gxf3 {[%clk 0:01:34.1]}
19... Qxc5 {[%clk 0:00:53.9]} 20. Be4 {[%clk 0:01:28.2]} 20... Bxe4 {[%clk
0:00:52.2]} 21. fxe4 {[%clk 0:01:27.3]} 21... Rfd8 {[%clk 0:00:49]} 22. Be3
{[%clk 0:01:26.7]} 22... Qh5 {[%clk 0:00:48.8]} 23. e5 {[%clk 0:01:16.4]} 23...
Rd5 {[%clk 0:00:47.6]} 24. Rac1 {[%clk 0:01:06.3]} 24... Rxe5 {[%clk 0:00:44]}
25. Kh1 {[%clk 0:01:05.9]} 25... Bd6 {[%clk 0:00:34.6]} 26. h4 {[%clk
0:00:26.6]} 26... Rd5 {[%clk 0:00:19.2]} 27. Qe4 {[%clk 0:00:26]} 27... Rd8
{[%clk 0:00:17.5]} 28. Rg1 {[%clk 0:00:25.6]} 28... Be7 {[%clk 0:00:13.7]} 29.
Rg4 {[%clk 0:00:24.5]} 29... Bf6 {[%clk 0:00:11.9]} 30. b3 {[%clk 0:00:22.9]}
30... a5 {[%clk 0:00:09.1]} 31. Kg2 {[%clk 0:00:22.9]} 31... Kh8 {[%clk
0:00:06.4]} 32. Qf3 {[%clk 0:00:21.3]} 32... h6 {[%clk 0:00:05]} 33. Rg1 {[%clk
0:00:21.2]} 33... Rf5 {[%clk 0:00:04.9]} 34. Qg3 {[%clk 0:00:20.9]} 34... Be5
{[%clk 0:00:04.6]} 35. Qh3 {[%clk 0:00:20.7]} 35... Bf6 {[%clk 0:00:03.7]} 36.
Qg3 {[%clk 0:00:20.4]} 36... Rfd5 {[%clk 0:00:04.2]} 37. Rh1 {[%clk 0:00:17.5]}
37... Rg8 {[%clk 0:00:03.3]} 38. Qf3 {[%clk 0:00:16.8]} 38... Rdd8 {[%clk
0:00:03.1]} 39. Qg3 {[%clk 0:00:15.2]} 39... Qd5+ {[%clk 0:00:03.7]} 40. Qf3
{[%clk 0:00:13.8]} 40... Qd7 {[%clk 0:00:04.3]} 41. h5 {[%clk 0:00:13.6]} 41...
e5 {[%clk 0:00:04.3]} 42. Bxh6 {[%clk 0:00:13.9]} 42... gxh6 {[%clk 0:00:04]}
43. Qxf6+ {[%clk 0:00:13.8]} 43... Kh7 {[%clk 0:00:04.5]} 44. Rxg8 {[%clk
0:00:13.9]} 44... Rxg8+ {[%clk 0:00:05.4]} 45. Kh2 {[%clk 0:00:14.4]} 45... Qg4
{[%clk 0:00:05.4]} 46. Qxf7+ {[%clk 0:00:14.7]} 46... Rg7 {[%clk 0:00:05.3]} 47.
Qd5 {[%clk 0:00:12.8]} 47... Qh4# {[%clk 0:00:05.3]} 0-1

[Event "*** Titled Tuesday Blitz"]
[Site "Chess.com"]
[Date "2020.12.01"]
[Round "10"]
[White "ChainsOfFantasia"]
[Black "mirciulica14"]
[Result "1-0"]
[WhiteElo "2526"]
[BlackElo "2589"]
[TimeControl "180+1"]
[EndTime "11:55:29 PST"]
[Termination "ChainsOfFantasia won on time"]

1. d4 {[%clk 0:03:00.9]} 1... Nf6 {[%clk 0:03:00]} 2. Nf3 {[%clk 0:03:01]} 2...
e6 {[%clk 0:03:00]} 3. c4 {[%clk 0:03:01.2]} 3... Bb4+ {[%clk 0:02:59.8]} 4.
Nbd2 {[%clk 0:03:00.9]} 4... b6 {[%clk 0:02:59.9]} 5. a3 {[%clk 0:03:00.9]} 5...
Bxd2+ {[%clk 0:03:00.2]} 6. Qxd2 {[%clk 0:03:01.8]} 6... Bb7 {[%clk 0:03:01.1]}
7. e3 {[%clk 0:03:02.2]} 7... O-O {[%clk 0:03:01.5]} 8. Be2 {[%clk 0:03:01.4]}
8... d6 {[%clk 0:03:01.1]} 9. O-O {[%clk 0:03:01.6]} 9... Nbd7 {[%clk 0:03:02]}
10. b4 {[%clk 0:03:00.4]} 10... Ne4 {[%clk 0:02:59.9]} 11. Qc2 {[%clk
0:02:59.7]} 11... f5 {[%clk 0:03:00.2]} 12. Bb2 {[%clk 0:02:53.6]} 12... Qe7
{[%clk 0:02:57.6]} 13. Rac1 {[%clk 0:02:49.7]} 13... c5 {[%clk 0:02:48.5]} 14.
Nd2 {[%clk 0:02:48.8]} 14... Qg5 {[%clk 0:02:41.4]} 15. g3 {[%clk 0:02:29.1]}
15... Ndf6 {[%clk 0:02:23.6]} 16. bxc5 {[%clk 0:02:13.3]} 16... bxc5 {[%clk
0:02:10.5]} 17. Nxe4 {[%clk 0:02:09]} 17... Bxe4 {[%clk 0:01:35.4]} 18. f4
{[%clk 0:01:56.6]} 18... Qh6 {[%clk 0:01:25.6]} 19. Bd3 {[%clk 0:01:41.2]} 19...
Ng4 {[%clk 0:00:37.6]} 20. Bxe4 {[%clk 0:01:22.9]} 20... fxe4 {[%clk 0:00:38.5]}
21. Qe2 {[%clk 0:01:14.3]} 21... Qh5 {[%clk 0:00:28.1]} 22. dxc5 {[%clk
0:00:51.1]} 22... dxc5 {[%clk 0:00:27.9]} 23. Rfd1 {[%clk 0:00:48.8]} 23... Rab8
{[%clk 0:00:27.6]} 24. Rd7 {[%clk 0:00:48]} 24... Rf7 {[%clk 0:00:22.3]} 25.
Rcd1 {[%clk 0:00:46.9]} 25... Qxh2+ {[%clk 0:00:14]} 26. Qxh2 {[%clk 0:00:45.7]}
26... Nxh2 {[%clk 0:00:14.9]} 27. Rd8+ {[%clk 0:00:41.7]} 27... Rf8 {[%clk
0:00:15.3]} 28. Rxf8+ {[%clk 0:00:31.2]} 28... Kxf8 {[%clk 0:00:16.2]} 29. Bxg7+
{[%clk 0:00:30.1]} 29... Kxg7 {[%clk 0:00:17.1]} 30. Kxh2 {[%clk 0:00:30.5]}
30... Rb3 {[%clk 0:00:16.3]} 31. Rd7+ {[%clk 0:00:26]} 31... Kg6 {[%clk
0:00:16.8]} 32. Rxa7 {[%clk 0:00:25.5]} 32... Rxe3 {[%clk 0:00:17.4]} 33. Rc7
{[%clk 0:00:20.5]} 33... Kf5 {[%clk 0:00:06.9]} 34. Rxc5+ {[%clk 0:00:21.2]}
34... Kg4 {[%clk 0:00:07.4]} 35. Re5 {[%clk 0:00:13.9]} 35... Kf3 {[%clk
0:00:06.6]} 36. Rxe6 {[%clk 0:00:12]} 36... Rxa3 {[%clk 0:00:06.7]} 37. f5
{[%clk 0:00:11.3]} 37... e3 {[%clk 0:00:05.8]} 38. f6 {[%clk 0:00:10.2]} 38...
Ra8 {[%clk 0:00:05.8]} 39. c5 {[%clk 0:00:08.2]} 39... e2 {[%clk 0:00:05.7]} 40.
c6 {[%clk 0:00:07.7]} 40... Kf2 {[%clk 0:00:04.4]} 41. f7 {[%clk 0:00:03.5]}
41... e1=Q {[%clk 0:00:02.9]} 42. Rxe1 {[%clk 0:00:03.7]} 42... Kxe1 {[%clk
0:00:03.8]} 43. Kh3 {[%clk 0:00:04.3]} 43... Ke2 {[%clk 0:00:03.9]} 44. Kg4
{[%clk 0:00:04.2]} 44... Ke3 {[%clk 0:00:04.2]} 45. Kf5 {[%clk 0:00:04.4]} 1-0

[Event "*** Titled Tuesday Blitz"]
[Site "Chess.com"]
[Date "2020.12.01"]
[Round "10"]
[White "Brave_spirit12"]
[Black "arjwezhrtdrz"]
[Result "1-0"]
[WhiteElo "2483"]
[BlackElo "2318"]
[TimeControl "180+1"]
[EndTime "11:55:30 PST"]
[Termination "Brave_spirit12 won by resignation"]

1. e4 {[%clk 0:02:59.6]} 1... e6 {[%clk 0:02:59.9]} 2. d4 {[%clk 0:02:59]} 2...
d5 {[%clk 0:03:00.5]} 3. exd5 {[%clk 0:02:59.9]} 3... exd5 {[%clk 0:03:00.3]} 4.
Nc3 {[%clk 0:03:00.8]} 4... Nf6 {[%clk 0:03:00.9]} 5. Bd3 {[%clk 0:03:01.7]}
5... Be7 {[%clk 0:03:01.2]} 6. Nge2 {[%clk 0:03:01.8]} 6... O-O {[%clk
0:03:00.8]} 7. Bg5 {[%clk 0:03:02.4]} 7... c6 {[%clk 0:03:00.7]} 8. Qd2 {[%clk
0:03:02.8]} 8... Re8 {[%clk 0:02:59]} 9. O-O-O {[%clk 0:03:03]} 9... Ne4 {[%clk
0:02:57.8]} 10. Bxe7 {[%clk 0:03:00.9]} 10... Qxe7 {[%clk 0:02:54.1]} 11. Bxe4
{[%clk 0:03:01.1]} 11... dxe4 {[%clk 0:02:54]} 12. Ng3 {[%clk 0:03:01.6]} 12...
f5 {[%clk 0:02:53.6]} 13. Rde1 {[%clk 0:02:58.4]} 13... Bd7 {[%clk 0:02:46.8]}
14. Nh5 {[%clk 0:02:48.7]} 14... Na6 {[%clk 0:02:38.9]} 15. g4 {[%clk
0:02:47.4]} 15... Nc7 {[%clk 0:02:35.4]} 16. gxf5 {[%clk 0:02:44.5]} 16... Bxf5
{[%clk 0:02:35.1]} 17. Rhg1 {[%clk 0:02:43.2]} 17... Bg6 {[%clk 0:02:34.3]} 18.
Nf4 {[%clk 0:02:41.2]} 18... Qf7 {[%clk 0:02:34.6]} 19. Nxg6 {[%clk 0:02:39.6]}
19... hxg6 {[%clk 0:02:34.7]} 20. Kb1 {[%clk 0:02:39.3]} 20... Rad8 {[%clk
0:02:12.9]} 21. Rxe4 {[%clk 0:02:35.9]} 21... Rxe4 {[%clk 0:02:11.4]} 22. Nxe4
{[%clk 0:02:36.8]} 22... Qd5 {[%clk 0:01:56.6]} 23. f3 {[%clk 0:02:02.8]} 23...
Qxd4 {[%clk 0:01:55.7]} 24. Qc1 {[%clk 0:02:01.8]} 24... Ne6 {[%clk 0:01:44.8]}
25. Rxg6 {[%clk 0:01:56.2]} 25... Qe5 {[%clk 0:01:27.3]} 26. a3 {[%clk 0:01:46]}
26... Qf5 {[%clk 0:01:16.2]} 27. Rg3 {[%clk 0:01:41.9]} 27... Nd4 {[%clk
0:01:11.6]} 28. Qh6 {[%clk 0:01:36.3]} 28... Ne6 {[%clk 0:00:58.6]} 29. Qe3
{[%clk 0:01:23.6]} 29... c5 {[%clk 0:00:53.2]} 30. Qb3 {[%clk 0:01:19.1]} 30...
Kf8 {[%clk 0:00:42.1]} 31. Qxb7 {[%clk 0:01:14.6]} 31... Rd1+ {[%clk 0:00:42.6]}
32. Ka2 {[%clk 0:01:14.1]} 32... Qd5+ {[%clk 0:00:43.3]} 33. Qxd5 {[%clk
0:01:14.1]} 33... Rxd5 {[%clk 0:00:44.2]} 34. Rg6 {[%clk 0:01:13.8]} 34... Kf7
{[%clk 0:00:41.5]} 35. Rg1 {[%clk 0:01:11.4]} 35... Rh5 {[%clk 0:00:35.8]} 36.
Rd1 {[%clk 0:01:07.4]} 36... Ke7 {[%clk 0:00:34.8]} 37. Rd2 {[%clk 0:01:05.8]}
37... Rh3 {[%clk 0:00:27.7]} 38. Re2 {[%clk 0:01:02.8]} 38... Kd7 {[%clk
0:00:21.9]} 39. Ng3 {[%clk 0:00:59.2]} 39... Nd4 {[%clk 0:00:19.9]} 40. Rd2
{[%clk 0:00:58.3]} 40... Kc6 {[%clk 0:00:20.5]} 41. f4 {[%clk 0:00:55]} 41...
Nf3 {[%clk 0:00:19.6]} 42. Rf2 {[%clk 0:00:50.8]} 42... Nxh2 {[%clk 0:00:19.2]}
43. Nf5 {[%clk 0:00:49.2]} 43... Ng4 {[%clk 0:00:15.9]} 44. Rg2 {[%clk
0:00:47.6]} 44... Ne3 {[%clk 0:00:16.3]} 45. Nxe3 {[%clk 0:00:45.4]} 45... Rxe3
{[%clk 0:00:17.2]} 46. Rxg7 {[%clk 0:00:46.3]} 46... Kb6 {[%clk 0:00:17.7]} 47.
f5 {[%clk 0:00:46.1]} 47... Rf3 {[%clk 0:00:18.2]} 48. Rf7 {[%clk 0:00:46.4]}
48... a5 {[%clk 0:00:17.4]} 49. b3 {[%clk 0:00:44.1]} 49... Kc6 {[%clk
0:00:15.1]} 50. Rf6+ {[%clk 0:00:44.2]} 50... Kd5 {[%clk 0:00:13.2]} 51. Rf8
{[%clk 0:00:42.2]} 51... c4 {[%clk 0:00:12.7]} 52. f6 {[%clk 0:00:37.3]} 52...
cxb3+ {[%clk 0:00:11.2]} 53. cxb3 {[%clk 0:00:37.4]} 53... Rf2+ {[%clk
0:00:11.5]} 54. Kb1 {[%clk 0:00:37.7]} 54... Rf3 {[%clk 0:00:11.1]} 55. f7
{[%clk 0:00:35.5]} 55... Rxb3+ {[%clk 0:00:09.4]} 56. Ka2 {[%clk 0:00:34.1]} 1-0